Cogmind - Beta 11.1 @@@ ROGUE MODE // 2022.11.27 @ 14:22:57 Player: Cod_fish Result: Destroyed by G-34 Mercenary with Small Laser Performance ------------- Evolutions (0) 0 Regions Visited (1) 200 Robots Destroyed (13) 65 Value Destroyed (280) 280 Prototype IDs (0) 0 Alien Tech Used (0) 0 Bonus (0) 0 TOTAL SCORE: 545 Bonus ------- None Cogmind --------- Core Integrity 0/250 Matter 300/300 Energy 100/100 System Corruption 0% Temperature Cool (6) Movement Core (450) Ox8 Location -10/Materials Parts ------- > --- POWER (1) -------- (None) > --- PROPULSION (2) --- (None) > --- UTILITY (2) ------ Small Storage Unit Large Storage Unit > --- WEAPON (2) ------- (None) > --- INVENTORY (15) --- Ion Engine Light Treads Aluminum Leg Aluminum Leg Small Storage Unit Small Laser Light Assault Rifle Peak State ------------ > --- POWER ------------ Ion Engine > --- PROPULSION ------- Light Treads Light Treads > --- UTILITY ---------- Small Storage Unit Small Storage Unit > --- WEAPON ----------- Light Assault Rifle Light Assault Rifle > --- INVENTORY -------- Ion Engine Aluminum Leg Aluminum Leg Small Laser [Rating: 7] Favorites ----------- Power Ion Engine Engine Ion Engine Propulsion Light Treads Treads Light Treads Utility Small Storage Unit Storage Small Storage Unit Weapon Light Assault Rifle Ballistic Gun Light Assault Rifle Build | -11 -10 ------- Run | Scr Mat Slots Evolved . | . . Power . | . . Propulsion . | . . Utility . | . . Weapon . | . . Parts Attached 9 | 7 2 Power 1 | 1 . Engine 1 | 1 . Core . | . . Reactor . | . . Propulsion 2 | 2 . Treads 2 | 2 . Leg . | . . Wheel . | . . Hover . | . . Flight . | . . Utility 3 | 2 1 Device . | . . Storage 3 | 2 1 Processor . | . . Hackware . | . . Protection . | . . Artifact . | . . Weapon 3 | 2 1 Energy Gun . | . . Energy Cannon . | . . Ballistic Gun 3 | 2 1 Ballistic Cannon . | . . Launcher . | . . Special Weapon . | . . Impact Weapon . | . . Slashing Weapon . | . . Piercing Weapon . | . . Special Melee Weapon . | . . Unidentified Prototypes . | . . Parts Lost 5 | . 5 Power 1 | . 1 Propulsion 2 | . 2 Utility . | . . Weapon 2 | . 2 Highest Loss Streak 4 | . 4 To Critical Strikes . | . . Average Slot Usage (%) 96 | . 96 Engine 13 | . 13 Treads 25 | . 25 Storage 28 | . 28 Ballistic Gun 27 | . 27 Naked Turns . | . . Heaviest Build 32 | 17 32 Greatest Support 40 | 40 40 Greatest Overweight (x) 1 | . 1 Average Overweight (x) . | . . Largest Inventory Capacity 15 | 8 15 Average Capacity 12 | 7 12 Most Carried 7 | 4 7 Average Carried 5 | 2 5 Final Capacity 15 | 8 15 Final Carried 7 | 4 7 Class Distribution -------------------- 100% | Mutant Dominant Class ---------------- Mutant | -10/Materials Resources | -11 -10 ----------- Run | Scr Mat Matter Collected 395 | 243 152 Remotely . | . . Salvage Created 413 | 51 362 Parts 22 | 2 20 Haulers Intercepted 2 | . 2 Recyclers Shooed 1 | . 1 Parts Field Recycled . | . . Retrieved Matter . | . . Parts Self-Destructed . | . . Prevented . | . . Kills | -11 -10 ------- Run | Scr Mat Combat Hostiles Destroyed 7 | . 7 Guns 7 | . 7 Classes Destroyed 6 | 1 5 Hauler 2 | . 2 Recycler 1 | 1 . Operator 1 | . 1 Watcher 2 | . 2 Swarmer 3 | . 3 Grunt 4 | . 4 Best Kill Streak 3 | 1 3 Combat Bots Only 3 | . 3 Max Kills in Single Turn 1 | 1 1 Gunslinging . | . . Exploded . | . . Melee . | . . Uniques/NPCs Destroyed . | . . Combat | -11 -10 -------- Run | Scr Mat Damage Taken 890 | . 890 Core 258 | . 258 Absorbed by Shields . | . . Core Remaining (%) 100 | 100 . Volleys Fired 60 | 2 58 Largest 2 | 2 2 Hottest 40 | 40 40 Shots Fired 120 | 4 116 Gun 120 | 4 116 Cannon . | . . Launcher . | . . Special . | . . Kinetic 120 | 4 116 Thermal . | . . Explosive . | . . Electromagnetic . | . . Robot Hit Streak 11 | 4 11 Robot Miss Streak 3 | . 3 Penetration Max . | . . Secondary Targets . | . . Shots Hit Robots 77 | 4 73 Core Hits 35 | 2 33 Critical Kills . | . . Critical Parts Destroyed . | . . Critical Strikes . | . . Melee Attacks . | . . Impact . | . . Slashing . | . . Piercing . | . . Sneak Attacks . | . . Combat Hostiles . | . . Follow-up Attacks . | . . Damage Inflicted 818 | 31 787 Guns 608 | 31 577 Cannons . | . . Explosions 206 | . 206 Melee . | . . Ramming 4 | . 4 Kinetic 608 | 31 577 Thermal 136 | . 136 Explosive . | . . Electromagnetic 70 | . 70 Impact . | . . Slashing . | . . Piercing . | . . Highest Corruption . | . . Average Corruption . | . . Corruption Purged . | . . Corruption Blocked . | . . Overload Shots . | . . Overflow Damage . | . . Projectiles . | . . Explosions . | . . Melee . | . . Knockbacks . | . . Impact . | . . Kinetic . | . . Secondary . | . . Self-Inflicted Damage . | . . Shots . | . . Rammed 1 | . 1 Targets Rammed 1 | . 1 Kicked . | . . Crushed . | . . Highest Temperature 25 | . 25 Average Temperature 11 | . 11 Received Heat Transfer 465 | . 465 Siege Activations . | . . Robots Corrupted . | . . Combat Hostiles . | . . Parts Fried . | . . Impact Corruptions . | . . Robots Melted . | . . Combat Hostiles . | . . Parts Melted . | . . Heat Transferred 100 | . 100 Parts Sabotaged . | . . Parts Stolen . | . . Parts Stripped . | . . Power Chain Reactions . | . . Missiles Intercepted . | . . Alert | -11 -10 ------- Run | Scr Mat Peak Influence 186 | 5 186 Initial 3 | . 3 Average 78 | 2 86 Maximum Alert Level . | . . Low Security (%) 100 | 100 100 Level 1 . | . . Level 2 . | . . Level 3 . | . . Level 4 . | . . Level 5 . | . . High Security . | . . Max Security . | . . Squads Dispatched 3 | . 3 Investigation 1 | . 1 Extermination . | . . Reinforcement 2 | . 2 Assault . | . . Garrison . | . . Intercept . | . . Searches Triggered . | . . Construction Impeded . | . . Haulers Reinforced . | . . Active Scanning Responses . | . . Cargo Convoy Interrupts . | . . Stealth | -11 -10 --------- Run | Scr Mat Distress Signals . | . . Communications Jammed . | . . Distress Signals . | . . Times Spotted 18 | . 18 Peak Tracking Total 3 | . 3 Tactical Retreats 1 | . 1 Traps | -11 -10 ------- Run | Scr Mat Traps Triggered 2 | . 2 Indirectly . | . . Trap Hack Attempts . | . . Triggered . | . . Disarmed . | . . Reprogrammed . | . . Reused . | . . Traps Extracted . | . . Installed . | . . Triggered . | . . Machines | -11 -10 ---------- Run | Scr Mat Machines Disabled 3 | . 3 Max in Single Turn 2 | . 2 Machines Sabotaged . | . . Garrisons Compromised . | . . Overloaded Fab Kills . | . . Hacking | -11 -10 --------- Run | Scr Mat Machines Accessed 4 | . 4 Terminals 4 | . 4 Fabricators . | . . Repair Stations . | . . Recycling Units . | . . Scanalyzers . | . . Garrison Access . | . . Total Hacks 12 | . 12 Successful 7 | . 7 Failed 5 | . 5 Catastrophic 1 | . 1 Database Lockouts . | . . Manual 12 | . 12 Terminals 12 | . 12 Fabricators . | . . Repair Stations . | . . Recycling Units . | . . Scanalyzers . | . . Garrison Access . | . . Terminal Hacks 3 | . 3 Locate Traps 1 | . 1 Recall Investigation 1 | . 1 Recall Reinforcements 1 | . 1 Fabricator Hacks . | . . Repair Station Hacks . | . . Recycling Unit Hacks . | . . Scanalyzer . | . . Garrison Access Hacks . | . . Unauthorized Hacks 4 | . 4 Terminals 4 | . 4 Botnet 3 | . 3 Operators 1 | . 1 Fabricators . | . . Repair Stations . | . . Recycling Units . | . . Scanalyzers . | . . Garrison Access . | . . Data Cores Recovered . | . . Used . | . . Hacking Detections 4 | . 4 Full Trace Events . | . . Feedback Events . | . . Feedback Blocked . | . . Robot Schematics Acquired . | . . Robots Built . | . . Authchips . | . . Time . | . . Total Robot Build Rating . | . . Part Schematics Acquired . | . . Parts Built . | . . Authchips . | . . Time . | . . Total Part Build Rating . | . . Parts Repaired . | . . Time . | . . Parts Recycled . | . . Recycled Matter . | . . Retrieved Matter . | . . Retrieved Components . | . . Parts Scanalyzed . | . . Part Schematics Acquired . | . . Parts Damaged . | . . Bothacking | -11 -10 ------------ Run | Scr Mat Used RIF Installer . | . . Robots Hacked . | . . Non-combat . | . . Combat . | . . Robot Hacks Applied . | . . Relay Couplers Released . | . . Fabnet Peak Effective % . | . . Robots Rewired . | . . Allies Hacked . | . . Hacks Repelled . | . . Allies | -11 -10 -------- Run | Scr Mat Total Allies . | . . Largest Group . | . . Highest-Rated Group . | . . Highest-Rated Ally . | . . Total Orders . | . . Ally Attacks . | . . Total Damage . | . . Kills . | . . Allies Corrupted . | . . Allies Melted . | . . Intel | -11 -10 ------- Run | Scr Mat Robot Analysis Total . | . . Derelict Logs Recovered . | . . Drone Launches . | . . Drone Recoveries . | . . Exploration | -11 -10 ------------- Run | Scr Mat Turns Passed 1172 | 116 1056 Spaces Moved 504 | 52 452 Core 3 | 3 . Treads 501 | 49 452 Legs . | . . Wheels . | . . Hover . | . . Flight . | . . Fastest Speed 50 | 50 160 Average Speed 164 | 153 166 Slowest Speed 240 | 160 240 Overloaded Moves . | . . Propulsion Burnouts . | . . Robots Hopped . | . . Cave-ins Triggered . | . . Exploration Rate (%) 37 | 4 70 Regions Visited 1 Branch Regions . Pre-discovered Areas . | . . Known Exits Taken . | . . Unknown Exits Taken 1 | 1 . Scrap Searched . | . . Spaces Dug . | . . Terrain Destroyed . | . . Melee . | . . Projectile . | . . AOE . | . . Terrain Rammed . | . . Walls Destroyed . | . . Machines Disabled . | . . Actions | -11 -10 --------- Run | Scr Mat Total 744 | 82 662 Wait 165 | 18 147 Move 503 | 51 452 Hop . | . . Pick Up 6 | 4 2 Fast Attach 8 | 7 1 Attach . | . . Detach . | . . Swap 1 | . 1 Drop . | . . Fire 60 | 2 58 Melee . | . . Ram . | . . Kick . | . . Crush 1 | . 1 Escape Stasis . | . . Rewire . | . . Trap . | . . Miscellaneous . | . . Route ------- -11/Scrapyard -10/Materials (discovered 3 exits: [*Mat x3]) History --------- Turn | Location | Event 8 | -11/Scrapyard | Discovered new exit (range 15) 117 | -11/Scrapyard | Entered Materials 305 | -10/Materials | Build established: Mutant 701 | -10/Materials | Discovered new exit (range 5) 847 | -10/Materials | Discovered new exit (range 9) 964 | -10/Materials | Discovered new exit (range 16) 1154 | -10/Materials | Core integrity fell below 50% 1164 | -10/Materials | Core integrity fell below 20% 1173 | -10/Materials | Destroyed by G-34 Mercenary with Small Laser Last Messages --------------- 01039_ K-01 Serf collects debris. 01041_ R-06 Scavenger collects Particle Gun. 01069_ O-16 Technician: "IFF HANDSHAKE FAILED. SECURING TERMINAL." 01080_ ALERT: Hostiles spotted, dispatching reinforcements to Terminal M002. 01082_ Connecting with Terminal... >>Recall(Reinforcements) Establishing remote squad link... Recalled reinforcement squad HV2PCQDAF5. 01109_ Triggered Alarm Trap. 01109_ An alarm sounds. 01109_ ALERT: Alarm triggered, dispatching investigation squad. 01115_ U-05 Engineer lays Concrete. 01135_ Connecting with Terminal... >>Recall(Investigation) Establishing remote squad link... Recalled investigation squad M9H22D103D. 01139_ Lgt. Treads destroyed. 01143_ Lgt. Assault Rifle destroyed. 01159_ Ion Engine destroyed. Map ----- +----------------------------------------------------+ | | | | | | | | | | | | | | | | | | | | | | | | | ???????????????????????????????????????????? | | ???????????????????????????????????????????? | | ???????????????????????????????????????????? | | ????????????????????????????###????????????? | | ?????##################### ##???????????? | | ?????# ????????? | | ?????# ????????? | | ?????###+########## ##### ##???????????? | | ??????????????????# #????????#????#####???? | | ??????????????????# #??????######## #???? | | ??????????????????# #??????# # < #???? | | ?????????????????## ##?????#""" # #???? | | ?????????????????# g #?????#"Y / #???? | | ?????????????????# @ #######""" # #???? | | ?????????????????# T g u +% # #???? | | ?????????????????# ####### # #???? | | ?????????????????######?????######## #???? | | ???????????????????????????????????# #???? | | ???????????????????????????????????# #???? | | ???????????????????????????????????# #???? | | ??????????????????####?????????????# #???? | | ????????????? ???##!!!?????????????# #???? | | ???????????? ??#! ?????????????# #???? | | ???????????? #?#! ?????????????# #???? | | ???????????? ## #?????????????# #???? | | ????????????? o #?????????????# #???? | | ?????????????? ############### ##### | | ?????????????? =! | | | ?????????????????# ! | | ?????????????????# %% | | ?????????????????# #+#/#########% | | ?????????????????# # [ #?# | | ?????????????????# !! # #?#* | | ?????????????????# !! # #?# | | ?????????????????# ! """ # #?# | | ???????########### """ ############# | | ???????# """ | | ???????# < ^ | +----------------------------------------------------+ Best States ------------- Heat Dissipation 25 Energy Generation 10 Energy Capacity 250 Matter Stores 300 Matter Capacity 300 Sight Range 16 Terrain Scan Density 10 Evasion (%) 40 Recoil Reduction 2 Item Schematics ----------------- None Robot Schematics ------------------ None Fabricated ------------ Nothing Alien Tech Used ----------------- None Achievements -------------- None Challenges ------------ None Game ------ Seed UltimateUltimateCompactor Manual? 0 Play Time 00:12:06 Cumulative 43.1 hours Start 2022.11.27 @ 14:12:37 End 2022.11.27 @ 14:22:57 Sessions 1 Manual Loads 0 Difficulty Rogue Special Mode None Game No. 73 Rogue 40 Adventurer 33 Explorer 0 Win Type - Total 2 Types 2/0/0/0/0/0/0/0/0 Lore% 20 Gallery% 29 Achievement% 30 Wizard Run 0 Options --------- ASCII 0 Keyboard 1 Movement Numpad Keybinds 0 Fullscreen 1 Font 18/SmallcapsGlow Map View 76x50 Tactical HUD 1 Map Filters NONE Filters NONE Steam 1 RUN: 24a68a3c-51c9-4faa-ae7c-708e5cd9dd06